fUSD/lending_fUSD_20260103
["ID","MTS","AMOUNT","RATE_DAILY","PERIOD"]
[400343610,1767399045023,-224.984,0.00040476,2]
[400343611,1767399045033,-156.732,0.00040476,2]
[400343612,1767399045042,-250.0,0.00040476,2]
[400343613,1767399045052,-150.0,0.00040476,2]
[400343614,1767399045063,-150.0,0.00040476,2]
[400343615,1767399045072,-150.0,0.00040476,2]
[400343616,1767399045083,-151.4,0.0004049,2]
[400343617,1767399045093,-300.0,0.00040499,10]
[400343618,1767399045103,-300.0,0.00040499,10]
[400343619,1767399045113,-300.0,0.00040499,10]
[400343620,1767399045123,-107226.23987977,0.000405,2]
[400343621,1767399045133,-166.26,0.00040551,2]
[400343622,1767399045144,-156.61,0.000406,14]
[400343623,1767399045154,-186.82,0.000406,14]
[400343624,1767399045164,-1425.9412307,0.000407,120]
[400343625,1767399045174,-300.0,0.00040729,10]
[400343626,1767399045185,-300.0,0.00040729,10]
[400343627,1767399045195,-300.0,0.00040729,10]
[400343628,1767399045205,-1370.093,0.0004073,59]
[400343629,1767399045215,-7737.57959831,0.00040757,15]
[400343630,1767399045226,-613.0,0.00040982,2]
[400343631,1767399045235,-3463.0,0.00040982,2]
[400343632,1767399045245,-1328.0,0.00040982,2]
[400343633,1767399045255,-1403.0,0.00040982,2]
[400343634,1767399045267,-1265.0,0.00040982,2]
[400343635,1767399045276,-433.0,0.00040982,2]
[400343636,1767399045286,-4814.0,0.00040982,2]
[400343637,1767399045295,-2433.0,0.00040982,2]
[400343638,1767399045305,-386.31870156,0.00040982,2]
[400343642,1767399046008,-6157.68129844,0.00040982,2]
[400343643,1767399046018,-1000.0,0.00041,7]
[400343644,1767399046028,-999.0,0.00041095,120]
[400343645,1767399046038,-294.39270084,0.00041096,2]
[400343646,1767399046048,-153.75731896,0.00041096,110]
[400343647,1767399046058,-150.0,0.00041146,120]
[400343648,1767399046068,-186.82,0.000412,14]
[400343649,1767399046078,-508.0,0.00041217,10]
[400343650,1767399046087,-273.3329022,0.00041265,30]
[400343651,1767399046097,-300.0,0.00041265,30]
[400343652,1767399046107,-300.0,0.00041265,30]
[400343653,1767399046117,-398.86540225,0.00041337,2]
[400343654,1767399046127,-300.0,0.00041412,30]
[400343655,1767399046137,-300.0,0.00041412,30]
[400343656,1767399046147,-600.0,0.00041413,60]
[400343657,1767399046157,-500.0,0.00041413,60]
[400343658,1767399046166,-500.0,0.00041413,60]
[400343659,1767399046177,-300.0,0.00041419,30]
[400343660,1767399046187,-300.0,0.00041419,30]
[400343661,1767399046198,-10019.35462052,0.0004142,120]
[400343662,1767399046208,-313.99302103,0.00041423,30]
[400343663,1767399046218,-300.0,0.00041423,30]
[400343664,1767399046228,-714.52147027,0.00041424,2]
[400343665,1767399046238,-151.52,0.00041425,30]
[400343666,1767399046248,-300.0,0.00041605,30]
[400343667,1767399046257,-451.0,0.00041688,30]
[400343668,1767399046268,-314.50635683,0.0004171,30]
[400343669,1767399046278,-9947.59,0.00041711,2]
[400343670,1767399046288,-3066.6710849,0.00041731,7]
[400343671,1767399046298,-186.82,0.000418,14]
[400343672,1767399046308,-600.0,0.00041961,60]
[400343673,1767399046318,-500.0,0.00041961,60]
[400343674,1767399046327,-473.35713322,0.00042,120]
[400343675,1767399046337,-1000.0,0.00042,7]
[400343676,1767399046347,-1356.80143423,0.0004201,2]
[400343677,1767399046356,-500.0,0.0004205,30]
[400343678,1767399046365,-831.0,0.00042082,16]
[400343679,1767399046375,-582.0,0.000421,3]
[400343680,1767399046385,-867.44,0.000421,14]
[400343681,1767399046394,-451.0,0.00042118,30]
[400343682,1767399046404,-500.0,0.00042183,30]
[400343683,1767399046414,-999.0,0.00042191,120]
[400343684,1767399046424,-868.23,0.000422,14]
[400343685,1767399046434,-1000.0,0.00042356,90]
[400343686,1767399046444,-1000.0,0.00042356,90]
[400343687,1767399046454,-508.0,0.00042392,10]
[400343688,1767399046463,-500.0,0.00042457,30]
[400343689,1767399046473,-500.00944106,0.000425,30]
[400343690,1767399046483,-600.0,0.00042509,60]
[400343691,1767399046492,-500.0,0.00042509,60]
[400343692,1767399046502,-451.0,0.00042548,30]
[400343693,1767399046512,-1963.68201,0.0004257,120]
[400343694,1767399046522,-1963.68201,0.0004257,120]
[400343695,1767399046531,-1963.68201,0.0004257,120]
[400343697,1767399046541,-1963.68201,0.0004257,120]
[400343698,1767399046550,-1919.94907448,0.0004257,120]
[400343699,1767399046563,-43.73293552,0.0004257,120]
[400343701,1767399046572,-168.0,0.00042636,2]
[400343704,1767399046582,-2000.0,0.00042712,120]
[400343705,1767399046591,-2000.0,0.00042712,120]
[400343706,1767399046601,-2000.0,0.00042712,120]
[400343707,1767399046611,-2000.0,0.00042712,120]
[400343708,1767399046620,-2000.0,0.00042712,120]
[400343709,1767399046630,-500.0,0.00042731,30]
[400343710,1767399046640,-1000.0,0.00042767,30]
[400343711,1767399046649,-1000.0,0.00042767,30]
[400343712,1767399046659,-1000.0,0.00042767,30]
[400343713,1767399046668,-1000.0,0.00042767,30]
[400343714,1767399046678,-1000.0,0.00042767,30]
[400343715,1767399046687,-995.287,0.00042767,30]
[400343716,1767399046698,-1000.0,0.00042774,120]
[400343717,1767399046708,-1000.0,0.00042774,120]
[400343718,1767399046721,-83.12329303,0.00042774,120]
[400343719,1767399046733,-514.89370697,0.00042774,120]
[400343720,1767399046743,-419.36039398,0.000428,5]
[400343721,1767399046754,-1406.39877183,0.0004282,2]
[400343722,1767399046765,-2000.0,0.00042842,3]
[400343723,1767399046774,-2000.0,0.00042842,3]
[400343724,1767399046784,-1566.85046981,0.00042942,2]
[400343725,1767399046798,-341.74623808,0.00042942,2]
[400343726,1767399046810,-1455.72961459,0.00042942,2]
[400343727,1767399046821,-8.14825236,0.00042942,2]
[400343728,1767399046831,-370.90702962,0.00042942,2]
[400343729,1767399046841,-714.52147027,0.00042948,2]
[400343730,1767399046850,-6.42324775,0.00042949,9]
[400343731,1767399046863,-271.46575438,0.00042949,9]
[400343732,1767399046873,-434.94530739,0.00042949,15]
[400343733,1767399046884,-652.03613473,0.00042949,15]
[400343734,1767399046897,-1746.80500616,0.00042949,15]
[400343738,1767399061004,500.0,0.00043042,120]
[400343739,1767399068642,628.25452076,0.00014773,2]
[400343740,1767399077145,14203.9373,0.000179,2]
[400343741,1767399121279,300.0,0.00017999,2]
[400343742,1767399123269,300.0,0.00017999,2]
[400343743,1767399133450,445.89134248,0.00017999,2]
[400343744,1767399153196,5648.4623,0.000179,2]
[400343745,1767399177705,500.0,0.000179,2]
[400343746,1767399192818,450.0,0.00017999,2]
[400343748,1767399326971,500.0,0.000179,2]
[400343749,1767399362672,500.0,0.00043042,120]
[400343750,1767399461635,500.0,0.000179,2]
[400343752,1767399536606,250.0,0.00017,2]
[400343753,1767399611025,213.398,0.000179,2]
[400343754,1767399624781,-300.0,0.00018,2]
[400343755,1767399651322,1099.0,0.00043038,30]
[400343756,1767399653735,381.35479693,0.00043038,30]
[400343757,1767399656133,1099.0,0.00043038,30]
[400343758,1767399661764,500.0,0.00043038,120]
[400343763,1767399804798,-257.36,0.00018,2]
[400343764,1767399807533,-212.68688634,0.00018,2]
[400343767,1767399858362,14712.9,0.00043038,30]
[400343768,1767399861684,355.38256054,0.00043038,32]
[400343772,1767399929184,36490.21257251,0.00016,2]
[400343774,1767399936717,168.3,0.00032877,120]
[400343776,1767399949216,-229.95311366,0.00018,2]
[400343777,1767399949244,-1000.0,0.00018,2]
[400343778,1767399949270,-1000.0,0.00018,2]
[400343779,1767399949297,-1000.0,0.00018,2]
[400343780,1767399949323,-1000.0,0.00018,2]
[400343781,1767399949350,-1000.0,0.00018,2]
[400343782,1767399949376,-1000.0,0.00018,2]
[400343783,1767399949404,-1000.0,0.00018,2]
[400343784,1767399949430,-1000.0,0.00018,2]
[400343785,1767399949456,-1000.0,0.00018,2]
[400343786,1767399949481,-1000.0,0.00018,2]
[400343787,1767399949507,-371.243,0.00018,2]
[400343788,1767399949535,-205.28113902,0.00018,2]
[400343789,1767399949560,-205.28113902,0.00018,2]
[400343790,1767399949591,-236.08,0.00018,2]
[400343791,1767399949624,-47752.1616083,0.00018,2]
[400343792,1767399961480,500.0,0.00043038,120]
[400343794,1767399964254,1292.02356161,0.00011,2]
[400343795,1767399969389,-288578.04600236,0.00018,2]
[400343796,1767399969416,-1951.81760279,0.00018,2]
[400343799,1767400013975,21875.91934859,0.000162,5]
[400343802,1767400072175,245807.23605172,0.00018,2]
[400343816,1767400232274,-250.0,0.00018253,2]
[400343818,1767400232284,-94.17171453,0.0001858,2]
[400343821,1767400232296,-205.82828547,0.0001858,2]
[400343822,1767400232306,-250.0,0.00018906,2]
[400343824,1767400232316,-8.54620423,0.00019419,2]
[400343825,1767400232327,-299.14502661,0.00019419,2]
[400343826,1767400232337,-47.70300511,0.00019951,2]
[400343827,1767400232350,-202.29699489,0.00019951,2]
[400343828,1767400232360,-250.0,0.00019986,2]
[400343829,1767400232370,-190.0,0.0002,2]
[400343830,1767400232380,-300.0,0.00020079,2]
[400343831,1767400232390,-200.0,0.00025316,2]
[400343832,1767400232399,-96.63585257,0.00025316,2]
[400343833,1767400232414,-110.76414743,0.00025316,2]
[400343834,1767400232424,-215.0738,0.00025316,2]
[400343835,1767400232434,-154.87205257,0.00025316,2]
[400343836,1767400232447,-68.15947803,0.00025316,2]
[400343837,1767400232458,-231.28369723,0.00025316,2]
[400343838,1767400232467,-239.84119403,0.00025316,2]
[400343839,1767400232477,-248.71531821,0.00025316,2]
[400343840,1767400232487,-345.19404565,0.00025316,2]
[400343841,1767400232497,-151.0,0.00026225,2]
[400343842,1767400232507,-151.0,0.00026225,2]
[400343843,1767400232518,-151.0,0.00026391,2]
[400343845,1767400232528,-151.0,0.00026391,2]
[400343847,1767400232538,-856.0,0.00028767,7]
[400343848,1767400232548,-200.0,0.0003,2]
[400343850,1767400232558,-2182.06,0.00032232,10]
[400343852,1767400232567,-1309.85148949,0.00032232,2]
[400343854,1767400232579,-1060.77904205,0.00032232,2]
[400343856,1767400232590,-556.64674786,0.00032232,2]
[400343858,1767400232600,-661.42405583,0.00032232,2]
[400343860,1767400232612,-1288.12252,0.00032232,2]
[400343862,1767400232624,-884.60538657,0.00032232,2]
[400343865,1767400232636,-2740.89999996,0.00032232,2]
[400343953,1767400238293,-328.88666808,0.00032232,2]
[400343954,1767400238309,-1267.99725202,0.00032232,2]
[400343955,1767400238324,-967.23683814,0.00032232,2]
[400343956,1767400238337,-5898.59,0.00032232,2]
[400343957,1767400238349,-151.8686862,0.00033097,2]
[400343958,1767400238360,-4671.46157664,0.00033236,2]
[400343959,1767400238374,-302.32842336,0.00033236,2]
[400343960,1767400238384,-258.37,0.00035222,37]
[400343961,1767400238396,-822.055,0.00035291,41]
[400343962,1767400238407,-280.93088859,0.0003536,2]
[400343963,1767400238430,-219.06911141,0.0003536,2]
[400343964,1767400238452,-1057.97,0.00035363,2]
[400343965,1767400238468,-200.0,0.00035443,2]
[400343966,1767400238481,-319.39,0.0003607,2]
[400343967,1767400238493,-1305.57,0.00036552,2]
[400343968,1767400238507,-166.66,0.00038594,30]
[400343969,1767400238529,-78.43117221,0.00038613,2]
[400343970,1767400238555,-73.43751399,0.00038613,2]
[400343971,1767400238573,-300.0,0.00038731,2]
[400343972,1767400238583,-303.85501722,0.00038731,2]
[400343973,1767400238596,-595.88867019,0.00038731,2]
[400343974,1767400238609,-364.48459935,0.00038731,2]
[400343975,1767400238619,-300.0,0.00038731,2]
[400343976,1767400238630,-300.0,0.00038731,2]
[400343977,1767400238642,-303.47175408,0.00038731,2]
[400343978,1767400238654,-578.04560059,0.00038731,2]
[400343979,1767400238666,-615.94778257,0.00038731,2]
[400343980,1767400238680,-304.64549813,0.00038731,2]
[400343982,1767400238691,-382.35763007,0.00038731,2]
[400343984,1767400238701,-42.38853466,0.00038731,2]
[400343987,1767400238714,-285.21027613,0.00038731,2]
[400343989,1767400238724,-303.85501722,0.00038731,2]
[400343990,1767400238734,-30.93470675,0.00038731,2]
[400343992,1767400238746,-398.96585399,0.00038731,2]
[400343993,1767400238758,-165.98810945,0.00038731,2]
[400343994,1767400238768,-344.02261035,0.00038731,2]
[400343995,1767400238780,-20.461989,0.00038731,2]
[400343996,1767400238791,-300.0,0.00038731,2]
[400343997,1767400238801,-300.0,0.00038731,2]
[400343998,1767400238811,-303.47175408,0.00038731,2]
[400343999,1767400238821,-578.04560059,0.00038731,2]
[400344000,1767400238832,-165.97140633,0.00038731,2]
[400344002,1767400240247,-449.97637624,0.00038731,2]
[400344003,1767400240258,-304.64549813,0.00038731,2]
[400344004,1767400240268,-166.66,0.00039406,30]
[400344005,1767400240278,-13805.10247184,0.00039999,2]
[400344006,1767400240293,-904.10752816,0.00039999,2]
[400344007,1767400240303,-200.0,0.0004,2]
[400344008,1767400240313,-137.50479012,0.0004,2]
[400344009,1767400240325,-1711.7740463,0.0004,2]
[400344010,1767400240337,-1414.824201,0.0004,2]
[400344011,1767400240374,-254.35801595,0.0004,2]
[400344012,1767400240485,-919.71294345,0.0004,2]
[400344013,1767400240497,-1218.70305801,0.0004,2]
[400344014,1767400240509,-215.90298253,0.0004,2]
[400344015,1767400240519,-353.47176662,0.00040038,10]
[400344016,1767400240531,-154.52823338,0.00040038,10]
[400344017,1767400240541,-166.66,0.00040219,30]
[400344018,1767400240553,-430.47951996,0.00040477,2]
[400344019,1767400240565,-2.52048004,0.00040477,2]
[400344020,1767400240575,-1265.0,0.00040477,2]
[400344021,1767400240584,-634.43951996,0.00040477,2]
[400344029,1767400244245,-564.56048004,0.00040477,2]
[400344030,1767400244255,-913.0,0.00040477,2]
[400344031,1767400244265,-542.63951996,0.00040477,2]
[400344032,1767400244327,-33.15085343,0.00040477,2]
[400344033,1767400244339,-752.20962661,0.00040477,2]
[400344034,1767400244349,-32.79037339,0.00040477,2]
[400344035,1767400244361,-316.16713008,0.00040477,2]
[400344036,1767400244372,-1242.14816729,0.00040477,2]
[400344037,1767400244384,-1871.89432924,0.00040477,2]
[400344038,1767400244393,-613.0,0.00040477,2]
[400344039,1767400244403,-1562.09072626,0.00040477,2]
[400344040,1767400244415,-870.90927374,0.00040477,2]
[400344041,1767400244426,-1000.0,0.00040497,120]
[400344042,1767400244436,-2500.0,0.00040895,2]
[400344043,1767400244445,-150.14249159,0.00040931,2]
[400344044,1767400244455,-1128.27594068,0.00040931,15]
[400344045,1767400244464,-500.0,0.00040982,31]
[400344046,1767400244474,-500.0,0.00040982,31]
[400344047,1767400244483,-500.0,0.00040982,31]
[400344048,1767400244493,-500.0,0.00040982,31]
[400344049,1767400244503,-301.33111094,0.00040982,7]
[400344050,1767400245418,-39.47097583,0.00040982,7]
[400344051,1767400245428,-500.0,0.00040982,31]
[400344052,1767400245438,-199.76926613,0.00040982,31]
[400344053,1767400245448,-137.35965239,0.00040982,31]
[400344054,1767400245460,-362.64034761,0.00040982,31]
[400344055,1767400245469,-298.49643629,0.00040982,31]
[400344056,1767400245481,-201.50356371,0.00040982,31]
[400344057,1767400245492,-151.22443271,0.00040982,31]
[400344058,1767400246128,-314.43499979,0.00040982,31]
[400344059,1767400246231,-34.3405675,0.00040982,31]
[400344060,1767400246243,-500.0,0.00040982,31]
[400344061,1767400246252,-500.0,0.00040982,31]
[400344062,1767400246263,-500.0,0.00040982,31]
[400344063,1767400246272,-500.0,0.00040982,31]
[400344064,1767400246283,-500.0,0.00040982,31]
[400344065,1767400246292,-500.0,0.00040982,31]
[400344066,1767400246302,-500.0,0.00040982,31]
[400344067,1767400246313,-500.0,0.00040982,31]
[400344068,1767400246328,-500.0,0.00040982,31]
[400344069,1767400246339,-500.0,0.00040982,31]
[400344070,1767400246350,-500.0,0.00040982,31]
[400344071,1767400246360,-500.0,0.00040982,31]
[400344072,1767400246371,-500.0,0.00040982,31]
[400344073,1767400246382,-500.0,0.00040982,31]
[400344074,1767400246392,-500.0,0.00040982,31]
[400344075,1767400246403,-613.34370099,0.00040982,31]
[400344076,1767400246413,-500.0,0.00040982,31]
[400344077,1767400246423,-500.0,0.00040982,31]
[400344078,1767400246434,-500.0,0.00040982,31]
[400344079,1767400246444,-500.0,0.00040982,31]
[400344080,1767400246454,-500.0,0.00040982,31]
[400344081,1767400246465,-171.67425107,0.00040994,31]
[400344082,1767400246476,-220.50711341,0.00040994,31]
[400344083,1767400246486,-551.73942416,0.00040994,31]
[400344084,1767400246496,-4711.0,0.00040995,5]
[400344085,1767400246506,-49435.08991651,0.00040995,2]
[400344086,1767400246519,-340.29295462,0.00040995,2]
[400344089,1767400246801,-2306.70553763,0.00040995,2]
[400344090,1767400246812,-400.91167856,0.00040995,2]
[400344091,1767400262168,500.0,0.00043038,120]
[400344092,1767400341556,305958.42,0.00043038,30]
[400344093,1767400428336,181.0,0.00043038,30]
[400344094,1767400561267,500.0,0.00043038,120]
[400344095,1767400625333,600.0,0.00032121,120]
[400344096,1767400683667,600.0,0.00032072,120]
[400344097,1767400683755,600.0,0.00032101,120]
[400344098,1767400683855,600.0,0.00032101,120]
[400344099,1767400684776,195.0,0.00032072,120]
[400344100,1767400684889,195.0,0.00032101,120]
[400344101,1767400728269,500.0,0.00043038,120]
[400344102,1767400746338,600.0,0.00028645,120]
[400344103,1767400852900,222.44,0.00013699,2]
[400344104,1767400861312,500.0,0.00043037,120]
[400344105,1767400919782,180.0,0.00032877,120]
[400344106,1767401094902,1000.0,0.00032022,120]
[400344107,1767401118429,50000.0,0.00043037,30]
[400344108,1767401118464,63661.93141242,0.00043037,30]
[400344109,1767401123527,50000.0,0.00043037,31]
[400344110,1767401128847,50000.0,0.00043037,32]
[400344111,1767401133700,50000.0,0.00043037,33]
[400344113,1767401157451,50000.0,0.00043037,34]
[400344114,1767401161731,500.0,0.00043037,120]
[400344116,1767401187466,50000.0,0.00043037,35]
[400344117,1767401225828,50000.0,0.00043037,36]
[400344121,1767401277116,38999.0,0.00043037,37]
[400344124,1767401338872,250.0,0.00017,2]
[400344126,1767401358459,520.0,0.00043037,120]
[400344128,1767401385862,151.0,0.00043037,120]
[400344129,1767401386426,151.0,0.00043037,120]
[400344146,1767401431333,-327.0,0.00020187,2]
[400344147,1767401431343,-222.44,0.00020187,2]
[400344149,1767401431353,-250.0,0.00021197,2]
[400344151,1767401431363,-195.0,0.00022206,2]
[400344152,1767401431376,-250.0,0.00022206,2]
[400344154,1767401431386,-250.0,0.00023323,2]
[400344156,1767401431397,-151.0,0.0002667,2]
[400344158,1767401431407,-151.0,0.0002667,2]
[400344160,1767401431417,-250.0,0.00026674,2]
[400344161,1767401431427,-222.44,0.00026676,2]
[400344163,1767401431438,-151.0,0.00026716,2]
[400344165,1767401431450,-151.0,0.00026716,2]
[400344167,1767401431460,-151.0,0.00026718,2]
[400344168,1767401431471,-151.0,0.00026718,2]
[400344170,1767401431482,-150.0,0.00031848,2]
[400344172,1767401431492,-1600.0,0.00031921,3]
[400344173,1767401431501,-8443.94807503,0.00031922,2]
[400344174,1767401431514,-5731.65106203,0.00031922,2]
[400344175,1767401431525,-302.04407022,0.00031922,2]
[400344176,1767401431538,-630.31,0.00031922,2]
[400344177,1767401431549,-5881.96855336,0.00031922,2]
[400344182,1767401431566,-911.69251022,0.00031922,2]
[400344184,1767401431578,-2422.07999342,0.00031922,2]
[400344221,1767401437581,-244.10341084,0.00031848,2]
[400344222,1767401437592,-150.0,0.00031848,2]
[400344223,1767401437603,-27.79347911,0.00031848,2]
[400344224,1767401437617,-122.20652089,0.00031848,2]
[400344225,1767401437629,-190.58945735,0.00031921,2]
[400344226,1767401437639,-432.3279582,0.00031921,2]
[400344227,1767401437649,-154.35497939,0.00031921,2]
[400344228,1767401437660,-500.0,0.00031921,2]
[400344229,1767401437671,-500.0,0.00031921,2]
[400344230,1767401437682,-500.0,0.00031921,2]
[400344231,1767401437693,-500.0,0.00031921,2]
[400344232,1767401437703,-29.10975387,0.00031921,2]
[400344233,1767401437716,-470.89024613,0.00031921,2]
[400344234,1767401437727,-500.0,0.00031921,2]
[400344235,1767401437738,-500.0,0.00031921,2]
[400344236,1767401437748,-311.3343701,0.00031921,2]
[400344237,1767401437762,-500.0,0.00031921,2]
[400344238,1767401437772,-500.0,0.00031921,2]
[400344240,1767401437782,-319.97692662,0.00031921,2]
[400344241,1767401437793,-500.0,0.00031921,2]
[400344242,1767401437804,-500.0,0.00031921,2]
[400344243,1767401437816,-500.0,0.00031921,2]
[400344244,1767401437827,-500.0,0.00031921,2]
[400344245,1767401437838,-500.0,0.00031921,2]
[400344246,1767401437849,-500.0,0.00031921,2]
[400344247,1767401437860,-500.0,0.00031921,2]
[400344248,1767401437871,-500.0,0.00031921,2]
[400344249,1767401437881,-500.0,0.00031921,2]
[400344250,1767401437892,-500.0,0.00031921,2]
[400344251,1767401437904,-500.0,0.00031921,2]
[400344253,1767401437915,-500.0,0.00031921,2]
[400344256,1767401437925,-500.0,0.00031921,2]
[400344258,1767401437936,-6097.09766239,0.00031922,2]
[400344261,1767401437950,-896.94,0.00031922,2]
[400344263,1767401437964,-2143.84150727,0.00031922,2]
[400344266,1767401437977,-1423.62061108,0.00031922,2]
[400344268,1767401437990,-22877.13477734,0.00031922,2]
[400344270,1767401438002,-551.09530478,0.00031922,2]
[400344297,1767401439596,-411.22828285,0.00031922,2]
[400344298,1767401439610,-1620.657999,0.00031922,2]
[400344299,1767401439720,-939654.68959101,0.00031922,2]
[400344300,1767401439731,-200.0,0.00031985,2]
[400344301,1767401439743,-250.0,0.00031985,2]
[400344302,1767401439754,-1454.3177,0.00032022,2]
[400344303,1767401439766,-1000.0,0.00032022,2]
[400344304,1767401439777,-4105.0224,0.00032022,2]
[400344305,1767401439804,-2500.0,0.00032022,2]
[400344306,1767401439815,-7486.93338037,0.00032031,2]
[400344308,1767401439827,-4537.14021342,0.00032031,2]
[400344310,1767401439838,-500.0,0.0003209,20]
[400344311,1767401439851,-191.55276757,0.00032112,2]
[400344312,1767401439863,-151.4,0.00032112,2]
[400344313,1767401439878,-657.644,0.00032121,31]
[400344314,1767401439890,-240.4,0.00032121,14]
[400344315,1767401439901,-353051.75536,0.00032122,3]
[400344316,1767401439912,-1061.80560835,0.00032131,15]
[400344317,1767401439925,-11559.9183479,0.00032132,2]
[400344318,1767401439936,-240.4,0.00032395,14]
[400344319,1767401439948,-155.76831982,0.0003243,19]
[400344320,1767401439960,-1000.0,0.0003263,2]
[400344321,1767401439972,-240.4,0.00032669,14]
[400344322,1767401439984,-240.4,0.00032943,14]
[400344323,1767401439996,-150.0,0.00032961,2]
[400344324,1767401440007,-2423.73,0.00033038,10]
[400344325,1767401440017,-151.87089949,0.00033095,2]
[400344326,1767401440029,-150.0,0.00033098,2]
[400344327,1767401440039,-156.61,0.000331,14]
[400344328,1767401440051,-204.36,0.000331,14]
[400344329,1767401440063,-222.44,0.00033165,2]
[400344330,1767401440074,-240.4,0.00033217,14]
[400344331,1767401440088,-150.0,0.00033235,2]
[400344332,1767401440098,-7486.93338036,0.00033243,2]
[400344333,1767401440108,-4537.14021333,0.00033243,2]
[400344334,1767401440120,-150.0,0.00033372,2]
[400344335,1767401440130,-150.0,0.00033509,2]
[400344336,1767401440145,-250.0,0.00033646,2]
[400344337,1767401440156,-4160.0,0.00033881,5]
[400344338,1767401440167,-7486.93338036,0.00034455,2]
[400344339,1767401440178,-4537.14021333,0.00034455,2]
[400344340,1767401440188,-2240.0,0.00034478,3]
[400344341,1767401440199,-1001.0,0.000356,2]
[400344342,1767401440211,-195.40230819,0.00035616,39]
[400344343,1767401440223,-7486.93338036,0.00035666,2]
[400344344,1767401440242,-4537.14021333,0.00035666,2]
[400344345,1767401440254,-2500.0,0.00036013,2]
[400344346,1767401440266,-1674.33,0.0003613,2]
[400344347,1767401440278,-572.03,0.0003622,2]
[400344348,1767401440291,-5000.0,0.00036304,2]
[400344349,1767401440303,-151.4,0.00036375,2]
[400344350,1767401440315,-5000.0,0.00036385,2]
[400344351,1767401440327,-5000.0,0.0003653,2]
[400344352,1767401440339,-5000.0,0.00036558,2]
[400344353,1767401440351,-249.15,0.00036607,2]
[400344354,1767401440365,-3643.48,0.00036607,2]
[400344355,1767401440385,-1250.0,0.00036615,2]
[400344356,1767401440396,-662.57,0.00036622,2]
[400344357,1767401440407,-1000.0,0.00036709,2]
[400344358,1767401440420,-2558.0,0.00036718,2]
[400344359,1767401440431,-4495.11,0.00036755,2]
[400344360,1767401440442,-726.24,0.00036794,2]
[400344361,1767401440452,-5000.0,0.0003681,2]
[400344362,1767401440463,-7486.93338036,0.00036878,2]
[400344363,1767401440473,-4537.14021333,0.00036878,2]
[400344364,1767401440484,-5000.0,0.00036927,2]
[400344365,1767401440495,-2500.0,0.00036948,2]
[400344366,1767401440505,-267.94,0.00036953,30]
[400344367,1767401440516,-187.97768291,0.000372,120]
[400344368,1767401440527,-3135.0,0.00037239,3]
[400344369,1767401440539,-204.36,0.000375,14]
[400344370,1767401440549,-7486.93338036,0.0003809,2]
[400344371,1767401440559,-4537.14021333,0.0003809,2]
[400344372,1767401440570,-303.85501722,0.0003873,2]
[400344373,1767401440580,-595.88867019,0.0003873,2]
[400344374,1767401440592,-364.48459935,0.0003873,2]
[400344375,1767401440604,-300.0,0.0003873,2]
[400344376,1767401440616,-537.12337987,0.0003873,2]
[400344377,1767401440628,-303.47175408,0.0003873,2]
[400344378,1767401440639,-578.04560059,0.0003873,2]
[400344379,1767401440652,-615.94778257,0.0003873,2]
[400344380,1767401440663,-304.64549813,0.0003873,2]
[400344381,1767401440673,-303.85501722,0.0003873,2]
[400344382,1767401440688,-595.88867019,0.0003873,2]
[400344383,1767401440698,-364.48459935,0.0003873,2]
[400344384,1767401440709,-300.0,0.0003873,2]
[400344385,1767401440726,-303.47175408,0.0003873,2]